Workbook

Sheet Standard Box trucks Rates
A1: Revised Exhibit 4.1 Rates and Box Truck Types - See Liability insurance below Amendment 3
A2: EAN Services, LLC
B3: Daily Rate for rentals from 1-6 days per 24 hour period. | C3: Weekly rate for 7 days at 6 x the Daily rate | D3: Monthly rate 24 x the Daily Rate
A4: Box Trucks (No lift gate) | E4: Additional Per Mile Charge
A5: 12 feet long, minimum 3,000 payload | B5: $79.80 | C5: $478.80 | D5: $1,915.20 | E5: $0.14
A6: 15 feet long, minimum 3,500 payload | B6: $88.35 | C6: $530.10 | D6: $2,120.40 | E6: $0.14
A7: 16 feet long, minimum 3,500 payload | B7: $93.10 | C7: $558.60 | D7: $2,234.40 | E7: $0.14
A8: 20 feet long, minimum 9,000 payload | B8: $97.85 | C8: $587.10 | D8: $2,348.40 | E8: $0.14
A9: 26 feet long, minimum 9,000 payload | B9: $106.40 | C9: $638.40 | D9: $2,553.60 | E9: $0.14
A10: Box Trucks (With Lift Gates) | E10: Additional Per Mile Charge
A11: 15 feet long, minimum 3,500 payload | B11: $93.10 | C11: $558.60 | D11: $2,234.40 | E11: $0.14
A12: 16 feet long, minimum 3,500 payload | B12: $93.10 | C12: $558.60 | D12: $2,234.40 | E12: $0.14
A13: 20 feet long, minimum 9,000 payload | B13: $97.85 | C13: $587.10 | D13: $2,348.40 | E13: $0.14
A14: 26 feet long, minimum 9,000 payload | B14: $106.40 | C14: $638.40 | D14: $2,553.60 | E14: $0.14
A15: Pick Up Trucks | E15: Additional Per Mile Charge
A16: Heavy Duty Pick up (3/4 ton) | B16: $87.30 | C16: $523.80 | D16: $2,095.20 | E16: $0.20 | F16: * see below for free mileage included
A17: Heavy Duty Pick up (1 ton) | B17: $96.03 | C17: $576.18 | D17: $2,304.72 | E17: $0.20
A18: Other Rentals Available | E18: Additional Per Mile Charge
A19: Standard Cargo Van | B19: $76.63 | C19: $459.78 | D19: $1,839.12 | E19: $0.20 | F19: * see below
A20: Other Trucks/Vans Available | E20: Additional Per Mile Charge
A21: 12 Ft Stake Bed | B21: $97.85 | C21: $587.10 | D21: $2,348.40 | E21: $0.14
A22: Stake Class 4/5 Conventional | B22: $97.85 | C22: $587.10 | D22: $2,348.40 | E22: $0.14
A23: 16 Ft Stake Bed | B23: $97.85 | C23: $587.10 | D23: $2,348.40 | E23: $0.14
A24: 24 Ft Stake Bed | B24: $107.35 | C24: $644.10 | D24: $2,576.40 | E24: $0.14
A25: 26 Ft Stake Bed | B25: $107.35 | C25: $644.10 | D25: $2,576.40 | E25: $0.14
A26: 3/4 Ton Pick up 4WD Diesel | B26: $91.18 | C26: $547.08 | D26: $2,188.32 | E26: $0.20 | F26: * see below
A27: 1 Ton Pick up Truck 4WD Diesel | B27: $99.91 | C27: $599.46 | D27: $2,397.84 | E27: $0.20 | F27: * see below
A28: Mini Cargo Van | B28: $73.72 | C28: $442.32 | D28: $1,769.28 | E28: $0.20 | F28: * see below
A29: Heavy Duty Cargo Van | B29: $78.57 | C29: $471.42 | D29: $1,885.68 | E29: $0.20 | F29: * see below
A30: Heavy Duty XL Cargo Van | B30: $80.51 | C30: $483.06 | D30: $1,932.24 | E30: $0.20 | F30: * see below
A31: Hi-Roof cargo Van | B31: $85.36 | C31: $512.16 | D31: $2,048.64 | E31: $0.20 | F31: * see below
A32: 24Ft box Truck with lift gate | B32: $102.60 | C32: $615.60 | D32: $2,462.40 | E32: $0.14
A33: Gooseneck Class 4/5 Conventional | B33: $112.50 | C33: =B33*6 -> $675.00 | D33: =B33*24 -> $2,700.00 | E33: $0.20 | F33: *see below
A34: Dump Body Class 4/5 Conventional | B34: $120.83 | C34: =B34*6 -> $724.98 | D34: =B34*24 -> $2,899.92 | E34: $0.20 | F34: *see below
A35: Utility/Service Body | B35: $112.50 | C35: $675.00 | D35: $2,700.00 | E35: $0.20 | F35: *see below
A36: Utility/Service Body 4/5 Conventional | B36: $120.83 | C36: $724.98 | D36: $2,899.92 | E36: $0.20 | F36: *see below
A37: Hi-Roof cargo Van-Reefer | B37: $141.67 | C37: $850.02 | D37: $3,400.08 | E37: $0.20 | F37: *see below
A38: 14 Ft Box Truck-Reefer | B38: $166.67 | C38: $1,000.02 | D38: $4,000.08 | E38: $0.14
A39: 24 FT Box Truck Reefer | B39: $190.00 | C39: $1,140.00 | D39: $4,560.00 | E39: $0.14
A40: 26 FT Box Truck-Reefer | B40: $200.00 | C40: $1,200.00 | D40: $4,800.00 | E40: $0.14
A42: Retained Responsibility | B42: All Rates listed in cost sheet above include DW with $2,500.00 Retained Responsibility
A43: Liability | B43: Rates include LP for accidents arising out of the operation or use of the rental vehicle with split limits of $100,000 bodily injury or death per person, $300,000 bodily injury or death per occurrence and $50,000 property damage per occurrence in either case upon the terms and subject to the limitations set forth herein and in the insurance policy which provides coverage. Unless required by law, Liability Protection excludes any protection afforded under: first party benefits; personal injury protection; medical payments; no-fault; and uninsured or underinsured motorist. No coverage is provided for physical damage to, or theft of, the rental Box Truck.”
A44: *Mileage Included | B44: The following trucks/Vans have 150 free miles per day, 750 free miles per week and 3,000 free per month include in rates: 3/4 Ton Pick up, 3/4 Ton Diesel, 1 ton Pick up , 1 ton pick up Diesel, mini cargo van, standard cargo van, HD cargo van, HD XL cargo van, Hi-Roof Cargo van, Gooseneck Class 4/5 Conventional, Dump Body 4/5 Conventional, Utility/Service Body, Utility/Service Body 4/5 Conventional, and Hi Roof Cargo Van Reefer.
A45: Telematics | B45: Available upon request, rates vary by region
A46: Preventative Maintech included in rental | B46: Limited to oil changes, fluids, filters, normal wear of brakes and tires. Preventative Maintenance does not include repairs required that are result of neglect, abuse, or collision. Repairs to after market equipment and glass are not included.
A47: Moving Blankets/Pads/Dollies/Straps | B47: Available upon request, rates vary by region and are subject to change
A48: Roadside Assistance Protection | B48: Available upon request at $8.99 per day. This protection waives financial responsibility for roadside service as it relates to chargeable roadside incidents: such as lost keys, lock outs and fuel outages.

Sheet $1M Liability Rate Plan
A1: Revised Exhibit 4.1 Rates and Box Truck Types See Liability insurance below Amendment 3
A2: EAN Services, LLC
B3: Daily Rate for rentals from 1-6 days per 24 hour period. | C3: Weekly rate for 7 days at 6 x the Daily rate | D3: Monthly rate 24 x the Daily Rate
A4: Box Trucks (No lift gate) | E4: Additional Per Mile Charge
A5: 12 feet long, minimum 3,000 payload | B5: =79.8+12 -> $91.80 | C5: =B5*6 -> $550.80 | D5: =B5*24 -> $2,203.20 | E5: $0.14
A6: 15 feet long, minimum 3,500 payload | B6: =88.35+12 -> $100.35 | C6: =B6*6 -> $602.10 | D6: =B6*24 -> $2,408.40 | E6: $0.14
A7: 16 feet long, minimum 3,500 payload | B7: =93.1+12 -> $105.10 | C7: =B7*6 -> $630.60 | D7: =B7*24 -> $2,522.40 | E7: $0.14
A8: 20 feet long, minimum 9,000 payload | B8: =97.85+12 -> $109.85 | C8: =B8*6 -> $659.10 | D8: =B8*24 -> $2,636.40 | E8: $0.14
A9: 26 feet long, minimum 9,000 payload | B9: =106.4+12 -> $118.40 | C9: =B9*6 -> $710.40 | D9: =B9*24 -> $2,841.60 | E9: $0.14
A10: Box Trucks (With Lift Gates) | E10: Additional Per Mile Charge
A11: 15 feet long, minimum 3,500 payload | B11: =93.1+12 -> $105.10 | C11: =B11*6 -> $630.60 | D11: =B11*24 -> $2,522.40 | E11: $0.14
A12: 16 feet long, minimum 3,500 payload | B12: =93.1+12 -> $105.10 | C12: =B12*6 -> $630.60 | D12: =B12*24 -> $2,522.40 | E12: $0.14
A13: 20 feet long, minimum 9,000 payload | B13: =97.85+12 -> $109.85 | C13: =B13*6 -> $659.10 | D13: =B13*24 -> $2,636.40 | E13: $0.14
A14: 26 feet long, minimum 9,000 payload | B14: =106.4+12 -> $118.40 | C14: =B14*6 -> $710.40 | D14: =B14*24 -> $2,841.60 | E14: $0.14
A15: Pick Up Trucks | E15: Additional Per Mile Charge
A16: Heavy Duty Pick up (3/4 ton) | B16: =87.3+12 -> $99.30 | C16: =B16*6 -> $595.80 | D16: =B16*24 -> $2,383.20 | E16: $0.20 | F16: * see below for mileage included
A17: Heavy Duty Pick up (1 ton) | B17: =96.03+12 -> $108.03 | C17: =B17*6 -> $648.18 | D17: =B17*24 -> $2,592.72 | E17: $0.20
A18: Other Rentals Available | E18: Additional Per Mile Charge
A19: Standard Cargo Van | B19: =76.63+12 -> $88.63 | C19: =B19*6 -> $531.78 | D19: =B19*24 -> $2,127.12 | E19: $0.20 | F19: * see below
A20: Other Trucks/Vans Available | E20: Additional Per Mile Charge
A21: 12 Ft Stake Bed | B21: =97.85+12 -> $109.85 | C21: =B21*6 -> $659.10 | D21: =B21*24 -> $2,636.40 | E21: $0.14
A22: Stake Class 4/5 Conventional | B22: =97.85+12 -> $109.85 | C22: $659.10 | D22: $2,636.40 | E22: $0.14
A23: 16 Ft Stake Bed | B23: =97.85+12 -> $109.85 | C23: $659.10 | D23: $2,636.40 | E23: $0.14
A24: 24 Ft Stake Bed | B24: =107.35+12 -> $119.35 | C24: $716.10 | D24: $2,864.40 | E24: $0.14
A25: 26 Ft Stake Bed | B25: =107.35+12 -> $119.35 | C25: $716.10 | D25: $2,864.40 | E25: $0.14
A26: 3/4 Ton Pick up 4WD Diesel | B26: =91.18+12 -> $103.18 | C26: $619.08 | D26: $2,476.32 | E26: $0.20 | F26: * see below
A27: 1 Ton Pick up Truck 4WD Diesel | B27: =99.91+12 -> $111.91 | C27: $671.46 | D27: $2,685.84 | E27: $0.20 | F27: * see below
A28: Mini Cargo Van | B28: =73.72+12 -> $85.72 | C28: $514.32 | D28: $2,057.28 | E28: $0.20 | F28: * see below
A29: Heavy Duty Cargo Van | B29: =78.57+12 -> $90.57 | C29: $543.42 | D29: $2,173.68 | E29: $0.20 | F29: * see below
A30: Heavy Duty XL Cargo Van | B30: =80.51+12 -> $92.51 | C30: $555.06 | D30: $2,220.24 | E30: $0.20 | F30: * see below
A31: Hi-Roof cargo Van | B31: =85.36+12 -> $97.36 | C31: $584.16 | D31: $2,336.64 | E31: $0.20 | F31: * see below
A32: 24Ft box Truck with lift gate | B32: =102.6+12 -> $114.60 | C32: $687.60 | D32: $2,750.40 | E32: $0.14
A33: Gooseneck Class 4/5 Conventional | B33: =112.5+12 -> $124.50 | C33: =B33*6 -> $747.00 | D33: =B33*24 -> $2,988.00 | E33: $0.20 | F33: *see below
A34: Dump Body Class 4/5 Conventional | B34: =120.83+12 -> $132.83 | C34: =B34*6 -> $796.98 | D34: =B34*24 -> $3,187.92 | E34: $0.20 | F34: *see below
A35: Utility/Service Body | B35: =112.5+12 -> $124.50 | C35: $747.00 | D35: $2,988.00 | E35: $0.20 | F35: *see below
A36: Utility/Service Body 4/5 Conventional | B36: =120.83+12 -> $132.83 | C36: $796.98 | D36: $3,187.92 | E36: $0.20 | F36: *see below
A37: Hi-Roof cargo Van-Reefer | B37: =141.67+12 -> $153.67 | C37: $922.02 | D37: $3,688.08 | E37: $0.20 | F37: *see below
A38: 14 Ft Box Truck-Reefer | B38: =166.67+12 -> $178.67 | C38: $1,072.02 | D38: $4,288.08 | E38: $0.14
A39: 24 FT Box Truck Reefer | B39: =190+12 -> $202.00 | C39: $1,212.00 | D39: $4,848.00 | E39: $0.14
A40: 26 FT Box Truck-Reefer | B40: =200+12 -> $212.00 | C40: $1,272.00 | D40: $5,088.00 | E40: $0.14
A42: Retained Responsibility | B42: All Rates listed in cost sheet above include DW with $2,500.00 Retained Responsibility
A43: Liability | B43: $1M Combined Single Limt included in Rates
A44: Mileage Included | B44: The following trucks/Vans have 150 free miles per day, 750 free miles per week and 3,000 free per month include in rates: 3/4 Ton Pick up, 3/4 Ton Diesel, 1 ton Pick up , 1 ton ick up Diesel, mini cargo van, standard cargo van, HD cargo van, HD XL cargo van, Hi-Roof Cargo van, Gooseneck Class 4/5 Conventional, Dump Body 4/5 Conventional, Utility/Service Body, Utility/Service Body 4/5 Conventional, and Hi Roof Cargo Van Reefer.
A45: Telematics | B45: Available upon request, rates vary by region
A46: Preventative Maintech included in rental | B46: Limited to oil changes, fluids, filters, normal wear of brakes and tires. Preventative Maintenance does not include repairs required that are result of neglect, abuse, or collision. Repairs to after market equipment and glass are not included.
A47: Moving Blankets/Pads/Dollies/Straps | B47: Available upon request, rates vary by region and are subject to change
A48: Roadside Assistance Protection | B48: Available upon request at $8.99 per day. This protection waives financial responsibilty for roadside service as it relates to chargeable roadside incidents: such as lost keys, lock outs and fuel outages.

Sheet Daily Surcharges
A1: Amount | B1: Daily Surcharges Enterprise Brand
A2: $5.00 | B2: Islip Home-City; NY (Unless otherwise indicated); Seattle
A3: $10.00 | B3: Mt Home-City; ND Home-City; NE (excluding Omaha and Lincoln): PR; SD (Excluding Sioux Falls); WV; WY (Excluding Cheyenne, Laramie, and Jackson): Bemidji, MN, Elko; Las Vegas Strip
A4: $12.00 | B4: DC Metro; L.A. Home-City and West L.A Area Home-City; San Francisco Central Coast Home-City; San Francisco North and East Bay Home City.
A5: $15.00 | B5: AK, HI Home-City; Boston Home-City; Chicago Home-City; Tahoe
A6: $16.00 | B6: San Francisco South Bay Home-City
A7: $17.00 | B7: NY/CT/NJ Metro (Including Westchester Home-City, Stamford, and Jersey City)
A8: $20.00 | B8: San Francisco (Including Peninsula, unless otherwise indicated) Home-City
A9: $21.00 | B9: NYC Boroughs (Bronx, Brooklyn, Manhattan, Queens, and Staten Island)
